fUSD/lending_fUSD_20260213
["ID","MTS","AMOUNT","RATE_DAILY","PERIOD"]
[405287502,1770945040223,-8184.539,9.656e-05,2]
[405287503,1770945040233,-22246.91540733,9.746e-05,2]
[405287504,1770945040242,-10000.0,9.757e-05,2]
[405287505,1770945040251,-9999.99,9.757e-05,2]
[405287506,1770945040261,-150.99,9.757e-05,2]
[405287507,1770945040270,-500.0,9.757e-05,2]
[405287509,1770945040279,-174.34074148,0.0001,2]
[405287511,1770945040289,-500.0,0.0001,2]
[405287512,1770945040298,-500.0,0.0001,2]
[405287513,1770945040307,-455.54206868,0.0001,2]
[405287514,1770945040318,-500.0,0.0001,2]
[405287515,1770945040327,-500.0,0.0001,2]
[405287516,1770945040337,-200.0,0.0001,2]
[405287517,1770945040348,-500.0,0.0001,2]
[405287518,1770945040358,-500.0,0.0001,2]
[405287519,1770945040368,-529.41495451,0.0001,2]
[405287520,1770945040377,-500.0,0.0001,2]
[405287521,1770945040387,-200.0,0.0001,2]
[405287522,1770945040398,-151.0,0.0001,2]
[405287523,1770945040407,-151.0,0.0001,2]
[405287524,1770945040416,-151.0,0.0001,2]
[405287525,1770945040426,-151.0,0.0001,2]
[405287526,1770945040435,-151.0,0.0001,2]
[405287527,1770945040444,-151.0,0.0001,2]
[405287528,1770945040453,-151.0,0.0001,2]
[405287529,1770945040463,-151.0,0.0001,2]
[405287530,1770945040472,-151.0,0.0001,2]
[405287531,1770945040481,-151.0,0.0001,2]
[405287532,1770945040491,-151.0,0.0001,2]
[405287533,1770945040500,-151.0,0.0001,2]
[405287534,1770945040509,-151.0,0.0001,2]
[405287535,1770945040519,-337.62357079,0.0001,2]
[405287536,1770945040529,-337.62357079,0.0001,2]
[405287537,1770945040539,-1000.0,0.000102,2]
[405287538,1770945040550,-250.0,0.0001023,2]
[405287539,1770945040559,-250.0,0.0001023,2]
[405287540,1770945040569,-1680.0,0.00010339,2]
[405287541,1770945040579,-255.0,0.00010509,2]
[405287542,1770945040588,-200.0,0.00010548,2]
[405287543,1770945040598,-500.0,0.00010548,2]
[405287544,1770945040607,-200.0,0.00010548,2]
[405287545,1770945040616,-200.0,0.00010596,2]
[405287546,1770945040625,-150.0,0.00010596,2]
[405287547,1770945040634,-150.0,0.00010596,2]
[405287548,1770945040644,-152.91,0.0001063,2]
[405287549,1770945040653,-200.0,0.00010651,2]
[405287550,1770945040663,-200.0,0.00010651,2]
[405287551,1770945040672,-204.66514286,0.00010651,2]
[405287552,1770945040682,-200.0,0.00010706,2]
[405287553,1770945040692,-200.0,0.0001076,2]
[405287554,1770945040702,-200.0,0.00010815,2]
[405287555,1770945040711,-206.09414423,0.0001087,2]
[405287556,1770945040720,-2002.0338883,0.000109,2]
[405287557,1770945040729,-3849.802505,0.000109,2]
[405287558,1770945040738,-3849.80250495,0.000109,2]
[405287559,1770945040748,-150.0,0.00010959,2]
[405287560,1770945040758,-209.78,0.00011074,2]
[405287561,1770945040768,-200.0,0.00011096,2]
[405287562,1770945040780,-506.16891787,0.00011096,2]
[405287563,1770945040790,-200.0,0.00011096,2]
[405287564,1770945040800,-20840.17041839,0.00011099,2]
[405287565,1770945040811,-20840.1704183,0.00011099,2]
[405287566,1770945040822,-28076.73782534,0.00011099,2]
[405287567,1770945040832,-28076.73782529,0.00011099,2]
[405287568,1770945040842,-5182.7,0.00011152,2]
[405287569,1770945040855,-1852.42,0.00011247,2]
[405287570,1770945040864,-152.91,0.00011294,2]
[405287571,1770945040873,-28076.73782529,0.00011333,2]
[405287572,1770945040883,-2351.0,0.00011373,2]
[405287573,1770945040894,-20840.1704183,0.00011409,2]
[405287574,1770945040904,-433.0,0.0001156,2]
[405287575,1770945040914,-9412.39,0.00011579,2]
[405287576,1770945040924,-200.0,0.00011644,2]
[405287577,1770945040934,-200.0,0.00011644,2]
[405287578,1770945040943,-152.91,0.00011959,2]
[405287579,1770945040952,-22348.8,0.00012055,2]
[405287580,1770945040962,-6589.15,0.00012087,2]
[405287581,1770945040971,-272.77,0.000121,2]
[405287582,1770945040980,-538.94,0.00012184,2]
[405287583,1770945040990,-200.0,0.00012192,2]
[405287584,1770945040999,-200.0,0.00012192,2]
[405287585,1770945041009,-191.02,0.00012225,2]
[405287586,1770945041018,-28076.73782529,0.00012271,2]
[405287587,1770945041028,-250.0,0.00012288,2]
[405287588,1770945041037,-500.25,0.00012329,2]
[405287589,1770945041046,-20840.1704183,0.00012335,2]
[405287590,1770945041055,-3292.0,0.0001251,2]
[405287591,1770945041064,-152.91,0.00012623,2]
[405287592,1770945041074,-736.0,0.00012716,2]
[405287593,1770945041084,-200.0,0.0001274,2]
[405287594,1770945041093,-200.0,0.0001274,2]
[405287595,1770945041103,-550.0,0.00013093,2]
[405287596,1770945041112,-500.0,0.00013143,2]
[405287597,1770945041122,-233.0,0.00013143,2]
[405287598,1770945041131,-28076.73782529,0.00013208,2]
[405287599,1770945041141,-20840.1704183,0.00013262,2]
[405287600,1770945041150,-152.91,0.00013288,2]
[405287601,1770945041159,-202.76025047,0.00013288,2]
[405287602,1770945041169,-202.23548278,0.00013288,2]
[405287603,1770945041178,-200.0,0.00013518,2]
[405287604,1770945041194,-500.0,0.00013673,2]
[405287605,1770945041203,-500.0,0.00013673,2]
[405287606,1770945041213,-228.13978173,0.00013673,2]
[405287607,1770945041222,-622.94629615,0.00013673,2]
[405287608,1770945041232,-500.97559243,0.00013673,2]
[405287609,1770945041242,-500.0,0.00013673,2]
[405287610,1770945041251,-500.0,0.00013673,2]
[405287611,1770945041260,-500.0,0.00013673,2]
[405287612,1770945041270,-500.0,0.00013673,2]
[405287613,1770945041280,-500.0,0.00013673,2]
[405287614,1770945041289,-500.0,0.00013698,2]
[405287615,1770945041299,-500.0,0.00013698,2]
[405287616,1770945041309,-500.0,0.00013698,2]
[405287617,1770945041318,-500.0,0.00013698,2]
[405287618,1770945041331,-500.0,0.00013698,2]
[405287619,1770945041341,-500.0,0.00013698,2]
[405287620,1770945041351,-500.0,0.00013698,2]
[405287621,1770945041361,-500.0,0.00013698,2]
[405287622,1770945041370,-500.0,0.00013698,2]
[405287623,1770945041380,-500.0,0.00013698,2]
[405287624,1770945041390,-226.09866305,0.00013698,2]
[405287625,1770945041400,-866.14,0.00013698,2]
[405287626,1770945041410,-866.14,0.00013698,2]
[405287627,1770945041420,-866.14,0.00013698,2]
[405287628,1770945041430,-866.14,0.00013698,2]
[405287629,1770945041440,-866.14,0.00013698,2]
[405287630,1770945041450,-866.14,0.00013698,2]
[405287631,1770945041461,-866.14,0.00013698,2]
[405287632,1770945041471,-866.14,0.00013698,2]
[405287633,1770945041481,-866.14,0.00013698,2]
[405287634,1770945041490,-866.14,0.00013698,2]
[405287635,1770945041501,-866.14,0.00013698,2]
[405287636,1770945041511,-866.14,0.00013698,2]
[405287637,1770945041520,-866.14,0.00013698,2]
[405287638,1770945041530,-866.14,0.00013698,2]
[405287639,1770945041540,-866.14,0.00013698,2]
[405287640,1770945041549,-500.0,0.00013698,2]
[405287641,1770945041559,-500.0,0.00013698,2]
[405287642,1770945041568,-500.0,0.00013698,2]
[405287643,1770945041578,-500.0,0.00013698,2]
[405287644,1770945041588,-500.0,0.00013698,2]
[405287645,1770945041599,-500.0,0.00013698,2]
[405287646,1770945041608,-500.0,0.00013698,2]
[405287647,1770945041617,-500.0,0.00013698,2]
[405287648,1770945041627,-500.0,0.00013698,2]
[405287649,1770945041637,-500.0,0.00013698,2]
[405287650,1770945041646,-500.0,0.00013698,2]
[405287651,1770945041655,-500.0,0.00013698,2]
[405287652,1770945041664,-500.0,0.00013698,2]
[405287653,1770945041674,-500.0,0.00013698,2]
[405287654,1770945041685,-500.0,0.00013698,2]
[405287655,1770945041695,-500.0,0.00013698,2]
[405287656,1770945041706,-500.0,0.00013698,2]
[405287657,1770945041716,-414.39956364,0.00013698,2]
[405287658,1770945041727,-500.0,0.00013698,2]
[405287659,1770945041736,-500.0,0.00013698,2]
[405287660,1770945041746,-500.0,0.00013698,2]
[405287661,1770945041755,-500.0,0.00013698,2]
[405287662,1770945041764,-570.0514315,0.00013698,2]
[405287663,1770945041774,-500.0,0.00013698,2]
[405287664,1770945041787,-500.0,0.00013698,2]
[405287665,1770945041797,-500.0,0.00013698,2]
[405287666,1770945041806,-500.0,0.00013698,2]
[405287667,1770945041816,-500.0,0.00013698,2]
[405287668,1770945041827,-634.60604974,0.00013698,2]
[405287669,1770945041837,-500.0,0.00013698,2]
[405287670,1770945041847,-500.0,0.00013698,2]
[405287671,1770945041857,-500.0,0.00013698,2]
[405287672,1770945041867,-500.0,0.00013698,2]
[405287673,1770945041876,-500.0,0.00013698,2]
[405287674,1770945041885,-500.0,0.00013698,2]
[405287675,1770945041895,-500.0,0.00013698,2]
[405287676,1770945041904,-500.0,0.00013698,2]
[405287677,1770945041915,-500.0,0.00013698,2]
[405287678,1770945041925,-500.0,0.00013698,2]
[405287679,1770945041935,-500.0,0.00013698,2]
[405287680,1770945041945,-500.0,0.00013698,2]
[405287681,1770945041954,-500.0,0.00013698,2]
[405287682,1770945041963,-500.0,0.00013698,2]
[405287683,1770945041972,-500.0,0.00013698,2]
[405287684,1770945041981,-500.0,0.00013698,2]
[405287685,1770945041990,-500.0,0.00013698,2]
[405287686,1770945042000,-500.0,0.00013698,2]
[405287687,1770945042010,-500.0,0.00013698,2]
[405287688,1770945042020,-496.78,0.00013698,2]
[405287689,1770945042029,-500.0,0.00013698,2]
[405287690,1770945042038,-500.0,0.00013698,2]
[405287691,1770945042047,-500.0,0.00013698,2]
[405287692,1770945042056,-500.0,0.00013698,2]
[405287693,1770945042066,-500.0,0.00013698,2]
[405287694,1770945042075,-500.0,0.00013698,2]
[405287695,1770945042083,-500.0,0.00013698,2]
[405287696,1770945042092,-500.0,0.00013698,2]
[405287697,1770945042099,-500.0,0.00013698,2]
[405287698,1770945042107,-500.0,0.00013698,2]
[405287699,1770945042115,-500.0,0.00013698,2]
[405287700,1770945042124,-500.0,0.00013698,2]
[405287701,1770945042134,-500.0,0.00013698,2]
[405287702,1770945042142,-500.0,0.00013698,2]
[405287703,1770945042151,-500.0,0.00013698,2]
[405287704,1770945042162,-500.0,0.00013698,2]
[405287705,1770945042171,-500.0,0.00013698,2]
[405287706,1770945042180,-500.0,0.00013698,2]
[405287707,1770945042192,-500.0,0.00013698,2]
[405287708,1770945042203,-500.0,0.00013698,2]
[405287709,1770945042212,-500.0,0.00013698,2]
[405287710,1770945042221,-500.0,0.00013698,2]
[405287711,1770945042230,-500.0,0.00013698,2]
[405287712,1770945042240,-500.0,0.00013698,2]
[405287713,1770945042249,-500.0,0.00013698,2]
[405287714,1770945042260,-500.0,0.00013698,2]
[405287715,1770945042272,-500.0,0.00013698,2]
[405287716,1770945042282,-500.0,0.00013698,2]
[405287717,1770945042291,-500.0,0.00013698,2]
[405287718,1770945042300,-500.0,0.00013698,2]
[405287719,1770945042312,-500.0,0.00013698,2]
[405287720,1770945042323,-500.0,0.00013698,2]
[405287721,1770945042335,-500.0,0.00013698,2]
[405287722,1770945042347,-500.0,0.00013698,2]
[405287723,1770945042359,-500.0,0.00013698,2]
[405287724,1770945042370,-500.0,0.00013698,2]
[405287725,1770945042381,-500.0,0.00013698,2]
[405287726,1770945042392,-500.0,0.00013698,2]
[405287727,1770945042403,-500.0,0.00013698,2]
[405287728,1770945042413,-500.0,0.00013698,2]
[405287729,1770945042423,-500.0,0.00013698,2]
[405287730,1770945042434,-500.0,0.00013698,2]
[405287731,1770945042444,-500.0,0.00013698,2]
[405287732,1770945042456,-500.0,0.00013698,2]
[405287733,1770945042467,-500.0,0.00013698,2]
[405287734,1770945042478,-500.0,0.00013698,2]
[405287735,1770945042491,-500.0,0.00013698,2]
[405287736,1770945042503,-500.0,0.00013698,2]
[405287737,1770945042514,-500.0,0.00013698,2]
[405287738,1770945042525,-500.0,0.00013698,2]
[405287739,1770945042536,-500.0,0.00013698,2]
[405287740,1770945042546,-500.0,0.00013698,2]
[405287741,1770945042557,-500.0,0.00013698,2]
[405287742,1770945042569,-500.0,0.00013698,2]
[405287743,1770945042579,-500.0,0.00013698,2]
[405287744,1770945042590,-500.0,0.00013698,2]
[405287745,1770945042601,-500.0,0.00013698,2]
[405287746,1770945042613,-500.0,0.00013698,2]
[405287747,1770945042623,-500.0,0.00013698,2]
[405287748,1770945042634,-305.08010906,0.00013698,2]
[405287749,1770945042647,-500.0,0.00013698,2]
[405287750,1770945042657,-500.0,0.00013698,2]
[405287751,1770945042668,-500.0,0.00013698,2]
[405287752,1770945042678,-500.0,0.00013698,2]
[405287754,1770945042689,-500.0,0.00013698,2]
[405287756,1770945042699,-500.0,0.00013698,2]
[405287758,1770945042709,-178.94,0.00013698,2]
[405287759,1770945042721,-500.0,0.00013698,2]
[405287760,1770945042732,-500.0,0.00013698,2]
[405287761,1770945042742,-500.0,0.00013698,2]
[405287762,1770945042753,-500.0,0.00013698,2]
[405287763,1770945042763,-500.0,0.00013698,2]
[405287764,1770945042774,-500.0,0.00013698,2]
[405287765,1770945042790,-500.0,0.00013698,2]
[405287766,1770945042800,-500.0,0.00013698,2]
[405287767,1770945042811,-500.0,0.00013698,2]
[405287768,1770945042823,-500.0,0.00013698,2]
[405287769,1770945042834,-500.0,0.00013698,2]
[405287770,1770945042846,-500.0,0.00013698,2]
[405287771,1770945042858,-217.64011132,0.00013698,2]
[405287772,1770945042870,-500.0,0.00013698,2]
[405287773,1770945042881,-500.0,0.00013698,2]
[405287774,1770945042891,-500.0,0.00013698,2]
[405287775,1770945042902,-500.0,0.00013698,2]
[405287776,1770945042913,-500.0,0.00013698,2]
[405287777,1770945042923,-500.0,0.00013698,2]
[405287778,1770945042933,-225.35,0.00013698,2]
[405287779,1770945042944,-500.0,0.00013698,2]
[405287780,1770945042956,-500.0,0.00013698,2]
[405287781,1770945042966,-500.0,0.00013698,2]
[405287782,1770945042976,-500.0,0.00013698,2]
[405287783,1770945042987,-482.37844443,0.00013698,2]
[405287784,1770945042999,-500.0,0.00013698,2]
[405287785,1770945043009,-500.0,0.00013698,2]
[405287786,1770945043020,-185.13,0.00013698,2]
[405287787,1770945043032,-500.0,0.00013698,2]
[405287788,1770945043043,-500.0,0.00013698,2]
[405287789,1770945043055,-500.0,0.00013698,2]
[405287790,1770945043066,-500.0,0.00013698,2]
[405287791,1770945043076,-500.0,0.00013698,2]
[405287792,1770945043087,-500.0,0.00013698,2]
[405287793,1770945043097,-500.0,0.00013698,2]
[405287794,1770945043107,-500.0,0.00013698,2]
[405287795,1770945043118,-500.0,0.00013698,2]
[405287796,1770945043131,-263.04923692,0.00013698,2]
[405287797,1770945043142,-500.0,0.00013698,2]
[405287798,1770945043154,-500.0,0.00013698,2]
[405287799,1770945043164,-500.0,0.00013698,2]
[405287800,1770945043175,-500.0,0.00013698,2]
[405287801,1770945043186,-500.0,0.00013698,2]
[405287802,1770945043197,-500.0,0.00013698,2]
[405287803,1770945043209,-500.0,0.00013698,2]
[405287804,1770945043221,-500.0,0.00013698,2]
[405287805,1770945043232,-500.0,0.00013698,2]
[405287806,1770945043243,-500.0,0.00013698,2]
[405287807,1770945043255,-163.23236379,0.00013698,2]
[405287808,1770945043267,-539.33,0.00013698,2]
[405287809,1770945043278,-539.33,0.00013698,2]
[405287810,1770945043289,-539.33,0.00013698,2]
[405287811,1770945043299,-539.33,0.00013698,2]
[405287812,1770945043310,-539.33,0.00013698,2]
[405287813,1770945043320,-539.33,0.00013698,2]
[405287814,1770945043331,-539.33,0.00013698,2]
[405287815,1770945043340,-539.33,0.00013698,2]
[405287816,1770945043351,-539.33,0.00013698,2]
[405287817,1770945043362,-539.33,0.00013698,2]
[405287818,1770945043374,-539.33,0.00013698,2]
[405287819,1770945043386,-539.33,0.00013698,2]
[405287820,1770945043397,-539.33,0.00013698,2]
[405287821,1770945043407,-539.33,0.00013698,2]
[405287822,1770945043418,-539.33,0.00013698,2]
[405287823,1770945043431,-500.0,0.00013698,2]
[405287824,1770945043441,-500.0,0.00013698,2]
[405287825,1770945043452,-500.0,0.00013698,2]
[405287826,1770945043462,-500.0,0.00013698,2]
[405287827,1770945043472,-500.0,0.00013698,2]
[405287828,1770945043483,-500.0,0.00013698,2]
[405287829,1770945043493,-453.70083741,0.00013698,2]
[405287830,1770945043504,-186.6,0.00013699,2]
[405287831,1770945043515,-155.5,0.00013699,2]
[405287832,1770945043527,-777.52,0.00013699,2]
[405287833,1770945043537,-150.0,0.00013699,2]
[405287834,1770945043548,-202.5468284,0.00013754,2]
[405287835,1770945043559,-4609.0,0.00013761,2]
[405287836,1770945043570,-500.0,0.00013863,2]
[405287837,1770945043580,-2120.875771,0.00013888,7]
[405287839,1770945043591,-330.0,0.00013915,2]
[405287840,1770945043601,-152.91,0.00013952,2]
[405287841,1770945043611,-439.0,0.00013965,2]
[405287842,1770945043621,-1252.0,0.00013987,2]
[405287844,1770945043632,-500.0,0.00014065,2]
[405287846,1770945043643,-160.0,0.00014065,2]
[405287848,1770945043653,-28076.73782529,0.00014145,2]
[405287850,1770945043664,-20840.1704183,0.00014188,2]
[405287852,1770945043674,-866.14,0.0001422,2]
[405287853,1770945043685,-500.0,0.0001422,2]
[405287854,1770945043696,-500.0,0.00014221,2]
[405287855,1770945043708,-243.2588911,0.00014221,2]
[405287856,1770945043719,-1000.0,0.00014221,2]
[405287857,1770945043730,-1000.0,0.00014221,2]
[405287858,1770945043740,-1114.51163375,0.00014221,2]
[405287859,1770945043751,-500.0,0.00014221,2]
[405287860,1770945043761,-1000.0,0.00014221,2]
[405287861,1770945043772,-500.0,0.00014236,2]
[405287862,1770945043783,-500.0,0.00014236,2]
[405287863,1770945043795,-500.0,0.00014236,2]
[405287864,1770945043805,-515.08342473,0.00014236,2]
[405287865,1770945043815,-539.33,0.00014236,2]
[405287866,1770945043826,-507.206913,0.00014535,7]
[405287867,1770945043836,-152.91,0.00014616,2]
[405287868,1770945043846,-160.0,0.00014717,2]
[405287869,1770945043858,-220.0,0.00014737,2]
[405287870,1770945043868,-1500.0,0.00014768,2]
[405287871,1770945043880,-1500.0,0.00014768,2]
[405287872,1770945043889,-370.36245155,0.00014768,2]
[405287873,1770945043900,-293.0,0.00014787,2]
[405287874,1770945043909,-1000.0,0.00014808,7]
[405287875,1770945043920,-440.0,0.00014887,2]
[405287876,1770945043931,-250.0,0.00015,2]
[405287877,1770945043942,-900.0,0.00015068,2]
[405287878,1770945043952,-28076.73782529,0.00015082,2]
[405287879,1770945043964,-20840.1704183,0.00015115,2]
[405287880,1770945043974,-6453.0,0.00015137,2]
[405287881,1770945043985,-500.0,0.00015151,2]
[405287882,1770945043996,-152.91,0.00015281,2]
[405287883,1770945044007,-2000.0,0.00015316,2]
[405287884,1770945044018,-1962.0003218,0.00015316,2]
[405287885,1770945044028,-2129.0,0.00015391,2]
[405287886,1770945044038,-200.0,0.00015838,2]
[405287887,1770945044048,-2500.0,0.00015864,2]
[405287888,1770945044058,-152.91,0.00015945,2]
[405287889,1770945044068,-302.38565624,0.00016,2]
[405287890,1770945044079,-32828.4274,0.00016016,2]
[405287891,1770945044090,-28076.73782529,0.0001602,2]
[405287892,1770945044100,-20840.1704183,0.00016041,2]
[405287893,1770945044110,-9999.99,0.00016116,2]
[405287894,1770945044121,-501.49937878,0.00016173,2]
[405287895,1770945044131,-500.0,0.00016173,2]
[405287896,1770945044141,-503.40722457,0.00016173,2]
[405287897,1770945044151,-500.0,0.00016173,2]
[405287898,1770945044162,-500.0,0.00016173,2]
[405287899,1770945044172,-500.0,0.00016173,2]
[405287900,1770945044184,-500.0,0.00016173,2]
[405287901,1770945044194,-500.0,0.00016173,2]
[405287902,1770945044205,-163.75258398,0.00016173,2]
[405287903,1770945044216,-162.27274498,0.00016173,2]
[405287904,1770945044226,-501.00396845,0.00016173,2]
[405287905,1770945044236,-523.24197668,0.00016173,2]
[405287906,1770945044246,-500.0,0.00016173,2]
[405287907,1770945044256,-501.90023215,0.00016173,2]
[405287908,1770945044266,-500.0,0.00016173,2]
[405287909,1770945044276,-501.86219137,0.00016173,2]
[405287910,1770945044286,-500.0,0.00016173,2]
[405287911,1770945044295,-500.0,0.00016173,2]
[405287912,1770945044306,-560.67882942,0.00016173,2]
[405287913,1770945044316,-500.0,0.00016173,2]
[405287914,1770945044325,-500.0,0.00016173,2]
[405287915,1770945044335,-161.82965337,0.00016173,2]
[405287916,1770945044346,-513.86696477,0.00016173,2]
[405287917,1770945044356,-500.0,0.00016173,2]
[405287918,1770945044366,-500.0,0.00016173,2]
[405287919,1770945044376,-160.31878935,0.00016173,2]
[405287920,1770945044386,-500.0,0.00016173,2]
[405287921,1770945044396,-500.0,0.00016173,2]
[405287922,1770945044406,-161.74480548,0.00016173,2]
[405287923,1770945044416,-500.0,0.00016173,2]
[405287924,1770945044426,-500.0,0.00016173,2]
[405287925,1770945044436,-500.0,0.00016173,2]
[405287926,1770945044446,-500.0,0.00016173,2]
[405287927,1770945044457,-500.0,0.00016173,2]
[405287928,1770945044467,-500.0,0.00016173,2]
[405287929,1770945044478,-500.48983529,0.00016173,2]
[405287930,1770945044488,-500.0,0.00016173,2]
[405287931,1770945044499,-500.0,0.00016173,2]
[405287932,1770945044510,-501.31989574,0.00016173,2]
[405287933,1770945044520,-500.0,0.00016173,2]
[405287934,1770945044531,-500.0,0.00016173,2]
[405287935,1770945044541,-558.99399893,0.00016173,2]
[405287936,1770945044551,-500.0,0.00016173,2]
[405287937,1770945044562,-160.89865825,0.00016173,2]
[405287938,1770945044572,-502.48032589,0.00016173,2]
[405287939,1770945044582,-500.0,0.00016173,2]
[405287940,1770945044592,-160.34697575,0.00016173,2]
[405287941,1770945044602,-160.17367828,0.00016173,2]
[405287942,1770945044612,-500.0,0.00016173,2]
[405287943,1770945044622,-500.79748844,0.00016173,2]
[405287944,1770945044633,-500.0,0.00016173,2]
[405287945,1770945044643,-500.0,0.00016173,2]
[405287946,1770945044653,-500.0,0.00016173,2]
[405287947,1770945044663,-595.5014334,0.00016173,2]
[405287948,1770945044674,-487.11741072,0.00016173,2]
[405287949,1770945044684,-500.0,0.00016173,2]
[405287950,1770945044694,-567.07995139,0.00016173,2]
[405287951,1770945044704,-185.78488201,0.00016173,2]
[405287952,1770945044714,-500.0,0.00016173,2]
[405287953,1770945044724,-204.61937458,0.00016238,2]
[405287954,1770945044734,-368.31487424,0.00016238,2]
[405287955,1770945044745,-1166.07308893,0.00016412,2]
[405287956,1770945044755,-900.0,0.00016438,2]
[405287957,1770945044765,-150.81724547,0.00016438,2]
[405287958,1770945044777,-1000.0,0.00016438,2]
[405287959,1770945044788,-9035.0,0.00016651,2]
[405287960,1770945044799,-1000.0,0.00016712,2]
[405287961,1770945044809,-866.14,0.0001672,2]
[405287962,1770945044820,-293.36,0.0001672,2]
[405287963,1770945044829,-458.5282504,0.00016721,2]
[405287964,1770945044839,-1000.0,0.00016721,2]
[405287965,1770945044851,-1000.0,0.00016721,2]
[405287966,1770945044861,-1000.0,0.00016721,2]
[405287967,1770945044870,-1000.0,0.00016721,2]
[405287968,1770945044880,-1000.0,0.00016721,2]
[405287969,1770945044890,-1093.29569559,0.00016721,2]
[405287970,1770945044899,-514.7416331,0.00016721,2]
[405287971,1770945044909,-1000.0,0.00016721,2]
[405287972,1770945044919,-1000.0,0.00016721,2]
[405287973,1770945044929,-650.05242785,0.00016721,2]
[405287974,1770945044939,-1000.0,0.00016721,2]
[405287975,1770945044948,-1000.0,0.00016721,2]
[405287976,1770945044958,-1000.0,0.00016721,2]
[405287977,1770945044968,-1000.0,0.00016721,2]
[405287978,1770945044977,-1000.0,0.00016721,2]
[405287979,1770945044987,-1000.0,0.00016721,2]
[405287980,1770945044997,-1000.0,0.00016721,2]
[405287981,1770945045007,-1000.0,0.00016721,2]
[405287982,1770945045017,-1000.0,0.00016721,2]
[405287983,1770945045027,-501.59682174,0.00016721,2]
[405287984,1770945045038,-1000.0,0.00016721,2]
[405287985,1770945045048,-1025.03000133,0.00016721,2]
[405287986,1770945045058,-1000.0,0.00016721,2]
[405287987,1770945045069,-1000.0,0.00016721,2]
[405287988,1770945045079,-1000.0,0.00016721,2]
[405287989,1770945045363,-1000.0,0.00016721,2]
[405287990,1770945045383,-3620.0,0.00016929,2]
[405287991,1770945045394,-28076.73782529,0.00016957,2]
[405287992,1770945045404,-20840.1704183,0.00016968,2]
[405287993,1770945045415,-500.0,0.00016983,2]
[405287994,1770945045424,-500.0,0.00016983,2]
[405287995,1770945045435,-500.0,0.00016983,2]
[405287996,1770945045445,-539.33,0.00016983,2]
[405287997,1770945045454,-1999.0,0.00016986,2]
[405287998,1770945045464,-300.0,0.00017,2]
[405287999,1770945045473,-272.08856874,0.00017092,2]
[405288000,1770945045483,-500.0,0.00017151,2]
[405288001,1770945045492,-272.77,0.00017267,2]
[405288002,1770945045501,-502.83485724,0.00017268,2]
[405288003,1770945045511,-1000.0,0.00017268,2]
[405288004,1770945045519,-1515.18498636,0.00017268,2]
[405288005,1770945045528,-1170.51466036,0.00017268,2]
[405288006,1770945045537,-1500.0,0.00017268,2]
[405288007,1770945045546,-1492.57355052,0.00017268,2]
[405288008,1770945045555,-500.0,0.00017268,2]
[405288009,1770945045564,-592.44420192,0.00017268,2]
[405288010,1770945045572,-1500.0,0.00017268,2]
[405288011,1770945045582,-1500.0,0.00017268,2]
[405288012,1770945045591,-393.35276973,0.00017268,2]